fUST/lending_fUST_20260210
["ID","MTS","AMOUNT","RATE_DAILY","PERIOD"]
[404982066,1770730237717,-292.0,0.00024999,2]
[404982068,1770730237726,-5711.61130644,0.00025,15]
[404982070,1770730237736,-13692.92170037,0.000252,2]
[404982072,1770730237745,-1784.60494616,0.00025603,2]
[404982074,1770730237755,-300.0,0.00025703,10]
[404982076,1770730237766,-300.0,0.00025703,10]
[404982078,1770730237775,-300.0,0.00025703,10]
[404982080,1770730237785,-300.0,0.00025703,10]
[404982082,1770730237794,-300.0,0.00025703,10]
[404982084,1770730237803,-300.0,0.00025703,10]
[404982086,1770730237812,-300.0,0.00025703,10]
[404982088,1770730237821,-300.0,0.00025703,10]
[404982091,1770730237830,-300.0,0.00025703,10]
[404982094,1770730237840,-300.0,0.00025703,10]
[404982096,1770730237849,-300.0,0.00025703,10]
[404982098,1770730237858,-300.0,0.00025703,10]
[404982100,1770730237868,-300.0,0.00025703,10]
[404982101,1770730237877,-300.0,0.00025703,10]
[404982102,1770730237886,-300.0,0.00025703,10]
[404982103,1770730237895,-600.0,0.00026216,30]
[404982104,1770730237904,-162.09869476,0.00026574,2]
[404982105,1770730237912,-500.0,0.00026574,2]
[404982106,1770730237921,-500.0,0.00026574,2]
[404982107,1770730237930,-500.0,0.00026574,2]
[404982108,1770730237939,-566.79162809,0.00026574,2]
[404982109,1770730237948,-500.0,0.00026574,2]
[404982110,1770730237956,-500.0,0.00026574,2]
[404982111,1770730237965,-297.39557338,0.00026574,2]
[404982112,1770730237974,-177.0,0.00026874,2]
[404982113,1770730237983,-880.0,0.00027205,2]
[404982114,1770730237992,-14104.33537191,0.000275,2]
[404982115,1770730238004,-1784.60494613,0.00028046,2]
[404982116,1770730238013,-1795.92809245,0.0002827,2]
[404982117,1770730238022,-720.0,0.00028838,30]
[404982118,1770730238032,-204.0,0.00028874,2]
[404982119,1770730238041,-500.0,0.00028999,2]
[404982120,1770730238050,-1847.66727503,0.00030137,2]
[404982121,1770730238058,-1784.60494613,0.0003049,2]
[404982122,1770730238071,-231.0,0.00030874,2]
[404982123,1770730238080,-864.0,0.00031721,30]
[404982124,1770730238089,-236.02022409,0.00032271,2]
[404982125,1770730238098,-10971.9449379,0.00032277,2]
[404982126,1770730238107,-257.24668145,0.00032286,2]
[404982127,1770730238118,-5115.60279757,0.00032288,2]
[404982128,1770730238127,-6261.3122333,0.00032721,2]
[404982129,1770730238136,-258.0,0.00032874,2]
[404982130,1770730238145,-1784.60494613,0.00032933,2]
[404982131,1770730238155,-500.0,0.00033941,7]
[404982132,1770730238163,-500.0,0.00034,7]
[404982133,1770730238172,-276.87745749,0.00034,2]
[404982134,1770730238183,-1000.0,0.00034894,30]
[404982135,1770730238193,-270.88244398,0.00035,2]
[404982136,1770730238203,-500.0,0.0003502,2]
[404982137,1770730238213,-2163.0,0.00035021,2]
[404982138,1770730238223,-1372.0,0.00035021,2]
[404982139,1770730238232,-633.0,0.00035021,2]
[404982140,1770730238243,-422.0,0.00035021,2]
[404982141,1770730238252,-721.0,0.00035021,2]
[404982142,1770730238261,-1784.60494613,0.00035377,2]
[404982143,1770730238271,-500.0,0.00036308,30]
[404982144,1770730238280,-2012.91330015,0.00037,2]
[404982145,1770730238289,-1784.60494613,0.0003782,2]
[404982146,1770730238299,-500.0,0.00037879,2]
[404982147,1770730238309,-500.0,0.00037977,2]
[404982148,1770730238319,-500.0,0.00037977,2]
[404982149,1770730238329,-500.0,0.00037977,2]
[404982150,1770730238338,-500.0,0.00037978,2]
[404982151,1770730238348,-500.0,0.00037978,2]
[404982152,1770730238358,-500.0,0.00037978,2]
[404982153,1770730238367,-151.0,0.00037979,31]
[404982154,1770730238376,-500.0,0.00037979,2]
[404982155,1770730238385,-10971.9449379,0.00037979,3]
[404982156,1770730238395,-742.18218896,0.00037979,3]
[404982157,1770730238405,-10971.9449379,0.0003798,3]
[404982158,1770730238414,-1222.72,0.0003798,3]
[404982159,1770730238423,-611.36,0.0003798,3]
[404982160,1770730238433,-305.68,0.0003798,3]
[404982161,1770730238443,-152.84,0.0003798,3]
[404982162,1770730238454,-458.52,0.0003798,3]
[404982163,1770730238463,-500.0,0.00037987,2]
[404982164,1770730238474,-500.0,0.00037987,2]
[404982165,1770730238484,-500.0,0.00037987,2]
[404982166,1770730238493,-500.0,0.00037987,2]
[404982168,1770730238503,-461.2101369,0.00037988,2]
[404982169,1770730238512,-500.0,0.00037989,2]
[404982170,1770730238522,-500.0,0.00037989,2]
[404982171,1770730238530,-500.0,0.00037989,2]
[404982172,1770730238539,-500.0,0.00037989,2]
[404982173,1770730238549,-500.0,0.00037989,2]
[404982174,1770730238559,-54507.57363954,0.0003799,2]
[404982175,1770730238568,-500.0,0.00038019,2]
[404982176,1770730238578,-2157.0,0.00038021,2]
[404982177,1770730238587,-614.489,0.00038021,2]
[404982178,1770730238596,-422.0,0.00038021,2]
[404982179,1770730238606,-721.0,0.00038021,2]
[404982180,1770730238616,-204.70169521,0.00038089,2]
[404982181,1770730238625,-175.63721783,0.00038089,2]
[404982182,1770730238636,-316.1469921,0.00038089,2]
[404982183,1770730238645,-368.09458832,0.00038089,2]
[404982184,1770730238656,-562.03909706,0.00038089,2]
[404982185,1770730238665,-500.0,0.00038213,2]
[404982186,1770730238675,-500.0,0.00038213,2]
[404982187,1770730238685,-500.0,0.00038213,2]
[404982188,1770730238694,-500.0,0.00038213,2]
[404982189,1770730238704,-500.0,0.00038213,2]
[404982190,1770730238714,-43887.7797517,0.00038214,3]
[404982191,1770730238723,-742.18218896,0.00038214,3]
[404982192,1770730238732,-500.0,0.00038222,2]
[404982193,1770730238741,-500.0,0.00038223,2]
[404982194,1770730238751,-500.0,0.00038223,2]
[404982195,1770730238760,-500.0,0.00038223,2]
[404982196,1770730238770,-361.94,0.00038223,2]
[404982197,1770730238779,-500.0,0.00038223,2]
[404982198,1770730238797,-500.0,0.00038223,2]
[404982199,1770730238809,-500.0,0.00038223,2]
[404982200,1770730238819,-500.0,0.00038223,2]
[404982201,1770730238829,-500.0,0.00038223,2]
[404982202,1770730238840,-500.0,0.00038223,2]
[404982203,1770730238851,-294.4,0.00038223,2]
[404982204,1770730238861,-204344.99168325,0.00038224,2]
[404982205,1770730238871,-151.0,0.00038224,31]
[404982206,1770730238881,-151.514068,0.00038224,31]
[404982207,1770730238891,-173.72,0.000383,7]
[404982208,1770730238900,-151.0,0.00038356,120]
[404982209,1770730238910,-189.363229,0.00038356,120]
[404982210,1770730238920,-317.520722,0.00038356,120]
[404982211,1770730238930,-317.520722,0.00038356,120]
[404982212,1770730238940,-317.520722,0.00038356,120]
[404982213,1770730238950,-317.520722,0.00038356,120]
[404982214,1770730238960,-317.520722,0.00038356,120]
[404982215,1770730238970,-317.520722,0.00038356,120]
[404982216,1770730238981,-317.520722,0.00038356,120]
[404982217,1770730238994,-317.520722,0.00038356,120]
[404982218,1770730239006,-317.520722,0.00038356,120]
[404982219,1770730239017,-317.520722,0.00038356,120]
[404982220,1770730239027,-317.520722,0.00038356,120]
[404982221,1770730239038,-317.520722,0.00038356,120]
[404982222,1770730239048,-151.0,0.00038356,120]
[404982223,1770730239059,-151.0,0.00038356,120]
[404982224,1770730239072,-151.0,0.00038356,120]
[404982225,1770730239082,-151.0,0.00038356,120]
[404982226,1770730239092,-151.0,0.00038356,120]
[404982227,1770730239102,-151.0,0.00038356,120]
[404982228,1770730239113,-151.0,0.00038356,120]
[404982229,1770730239124,-151.0,0.00038356,120]
[404982230,1770730239134,-151.0,0.00038356,120]
[404982231,1770730239144,-151.0,0.00038356,120]
[404982232,1770730239154,-151.0,0.00038356,120]
[404982233,1770730239164,-232.203422,0.00038356,120]
[404982234,1770730239175,-176.42333,0.00038356,120]
[404982235,1770730239186,-1000.0,0.00038383,60]
[404982236,1770730239198,-244.0,0.00038383,60]
[404982237,1770730239208,-712.0,0.00038394,11]
[404982238,1770730239218,-6116.05589263,0.00038553,2]
[404982239,1770730239229,-10971.9449379,0.00038556,3]
[404982240,1770730239239,-1033.6060204,0.00038566,2]
[404982241,1770730239248,-23485.7373155,0.00038566,2]
[404982242,1770730239259,-317.520722,0.00038577,120]
[404982243,1770730239269,-317.520722,0.00038577,120]
[404982244,1770730239278,-317.520722,0.00038577,120]
[404982245,1770730239287,-317.520722,0.00038577,120]
[404982246,1770730239297,-151.0,0.00038577,120]
[404982247,1770730239307,-151.0,0.00038577,120]
[404982248,1770730239316,-151.0,0.00038577,120]
[404982249,1770730239326,-10971.9449379,0.0003859,3]
[404982250,1770730239336,-21943.8898758,0.00038598,3]
[404982251,1770730239347,-742.18218896,0.00038598,3]
[404982252,1770730239357,-98747.5044413,0.000386,3]
[404982253,1770730239367,-214.9791856,0.000386,3]
[404982254,1770730239377,-559.59,0.000386,2]
[404982255,1770730239387,-559.59,0.000386,2]
[404982256,1770730239396,-559.59,0.000386,2]
[404982257,1770730239406,-559.59,0.000386,2]
[404982258,1770730239417,-559.59,0.000386,2]
[404982259,1770730239427,-559.59,0.000386,2]
[404982260,1770730239437,-559.59,0.000386,2]
[404982262,1770730239446,-559.59,0.000386,2]
[404982263,1770730239457,-559.59,0.000386,2]
[404982264,1770730239466,-559.59,0.000386,2]
[404982265,1770730239476,-559.59,0.000386,2]
[404982267,1770730239586,-559.59,0.000386,2]
[404982268,1770730239599,-559.59,0.000386,2]
[404982269,1770730239608,-559.59,0.000386,2]
[404982270,1770730239618,-559.59,0.000386,2]
[404982271,1770730239628,-559.59,0.000386,2]
[404982272,1770730239638,-559.59,0.000386,2]
[404982273,1770730239647,-559.59,0.000386,2]
[404982274,1770730239657,-559.59,0.000386,2]
[404982275,1770730239667,-559.59,0.000386,2]
[404982276,1770730239676,-559.59,0.000386,2]
[404982277,1770730239686,-559.59,0.000386,2]
[404982278,1770730239695,-559.59,0.000386,2]
[404982279,1770730239706,-559.59,0.000386,2]
[404982280,1770730239715,-559.59,0.000386,2]
[404982281,1770730239725,-559.59,0.000386,2]
[404982282,1770730239735,-559.59,0.000386,2]
[404982284,1770730239744,-559.59,0.000386,2]
[404982285,1770730239754,-559.59,0.000386,2]
[404982286,1770730239763,-559.59,0.000386,2]
[404982287,1770730239773,-559.59,0.000386,2]
[404982288,1770730239782,-559.59,0.000386,2]
[404982289,1770730239792,-1031.2,0.000386,2]
[404982290,1770730239803,-94861.71778845,0.00038608,2]
[404982310,1770730239976,-20632.8,0.00038608,2]
[404982462,1770730245956,-1034.15871538,0.00038608,2]
[404982475,1770730361541,-229.64351423,0.00025701,2]
[404982476,1770730361572,-500.0,0.00025701,2]
[404982477,1770730361600,-443.21679521,0.00025701,2]
[404982478,1770730361672,-171.96495376,0.00025701,2]
[404982481,1770730390759,-328.03504624,0.00025701,2]
[404982482,1770730390788,-16.79021696,0.00025701,2]
[404982483,1770730390828,-483.20978304,0.00025701,2]
[404982486,1770730420129,-344.8252632,0.00025601,2]
[404982495,1770730631681,500.41639703,0.00013699,2]
[404982509,1770730816685,500.0,0.00013273,2]
[404982510,1770730816744,500.0,0.00013821,2]
[404982511,1770730885841,245.81439108,0.00017808,2]
[404982512,1770730886016,1000.0,0.00014247,2]
[404982513,1770730886058,500.0,0.00013699,2]
[404982519,1770730927452,497.49032767,0.00013273,2]
[404982520,1770730928926,500.0,0.00013273,2]
[404982521,1770730928987,192.43499204,0.00013821,2]
[404982522,1770730930726,500.0,0.00013273,2]
[404982523,1770730930764,1000.0,0.00013821,2]
[404982529,1770731032412,1000.0,0.000301,120]
[404982530,1770731047011,537.46785161,0.00013699,2]
[404982533,1770731062037,1000.0,0.0003013,120]
[404982534,1770731091615,896.09,0.000301,120]
[404982538,1770731121426,500.0,0.00013273,2]
[404982539,1770731121455,718.40263295,0.00013821,2]
[404982540,1770731125243,500.49680672,0.00013699,2]
[404982541,1770731127016,501.35860597,0.00013699,2]
[404982542,1770731129260,500.0,0.00013273,2]
[404982543,1770731129323,1001.2965589,0.00013821,2]
[404982545,1770731132659,500.6070562,0.00013699,2]
[404982546,1770731196549,500.0,0.00013273,2]
[404982547,1770731196609,226.31513533,0.00013821,2]
[404982550,1770731223458,501.12233617,0.00013699,2]
[404982552,1770731225787,501.14942612,0.00013699,2]
[404982555,1770731235949,501.43312802,0.00013699,2]
[404982666,1770731431703,-265.67980197,0.00033353,7]
[404982702,1770731437916,-234.32019803,0.00033353,7]
[404982704,1770731437926,-163.67980197,0.00034936,2]
[404982710,1770731437975,-332.63639003,0.00034936,2]
[404982712,1770731437984,-150.0,0.00034982,2]
[404982714,1770731437994,-3852.60813969,0.00035879,120]
[404982719,1770731438034,-469.58372368,0.00035879,120]
[404982896,1770731440094,-8247.80813663,0.00035879,120]
[404982898,1770731440104,-300.0,0.00036,120]
[404982900,1770731440113,-500.0,0.00036347,30]
[404982902,1770731440122,-351.39963192,0.0003678,2]
[404982904,1770731440133,-500.0,0.0003722,30]
[404982906,1770731440142,-2500.0,0.000378,7]
[404982908,1770731440152,-180.07267702,0.00037998,15]
[404982910,1770731440161,-500.0,0.00037999,15]
[404982912,1770731440170,-11907.43190996,0.00038,2]
[404983158,1770731442661,-156642.13585212,0.00038,2]
[404983161,1770731442672,-1948.94628261,0.00038,2]
[404984287,1770731524913,428.61119807,0.00013699,2]
[404984288,1770731528732,500.5242423,0.00013699,2]
[404984290,1770731646245,500.0,0.00013699,2]
[404984291,1770731646273,1000.61313931,0.00014247,2]
[404984292,1770731716821,500.0,0.00013699,2]
[404984293,1770731716879,501.10363565,0.00014247,2]
[404984294,1770731717263,500.0,0.00013699,2]
[404984295,1770731717436,1001.82275039,0.00014247,2]
[404984296,1770731721391,501.30121852,0.00013699,2]
[404984297,1770731722188,299.77453238,0.00013699,2]
[404984298,1770731723635,500.0,0.00013273,2]
[404984299,1770731725827,500.0,0.00013699,2]
[404984300,1770731725880,634.30698175,0.00014247,2]
[404984301,1770731738748,516.06025722,0.00013699,2]
[404984302,1770731772278,500.0,0.00013699,2]
[404984303,1770731780011,500.0,0.00013699,2]
[404984304,1770731783654,287.71384729,0.00013699,2]
[404984305,1770731784191,500.6396717,0.00013699,2]
[404984306,1770731785925,500.0,0.00013273,2]
[404984307,1770731787546,502.09662769,0.00013699,2]
[404984308,1770731827829,500.0,0.00013699,2]
[404984309,1770731831355,164.4718598,0.00013699,2]
[404984310,1770731833220,500.0,0.00013699,2]
[404984311,1770731833808,479.50544734,0.00013699,2]
[404984312,1770731833849,500.0,0.00013699,2]
[404984313,1770731833904,500.0,0.00014247,2]
[404984314,1770731835301,562.42100225,0.00013699,2]
[404984315,1770732014861,500.0,0.00013699,2]
[404984316,1770732014895,461.32870613,0.00014247,2]
[404984317,1770732014967,496.59324571,0.00013273,2]
[404984318,1770732015379,499.84489272,0.00013273,2]
[404984319,1770732017065,500.0,0.00013699,2]
[404984320,1770732017122,942.24164672,0.00014247,2]
[404984321,1770732017496,500.0,0.00013273,2]
[404984322,1770732017542,500.0,0.00013821,2]
[404984323,1770732018117,500.0,0.00013273,2]
[404984324,1770732023823,500.0,0.00013699,2]
[404984325,1770732025079,500.0,0.00013699,2]
[404984326,1770732025133,500.0,0.00014247,2]
[404984327,1770732028297,479.50544734,0.00013273,2]
[404984328,1770732029352,500.0,0.00013699,2]
[404984329,1770732029935,500.0,0.00013273,2]
[404984330,1770732031577,500.0,0.00013699,2]
[404984331,1770732031619,459.79582892,0.00013699,2]
[404984332,1770732031647,1000.83474784,0.00014247,2]
[404984333,1770732032133,500.0,0.00013699,2]
[404984334,1770732033529,500.0,0.00013699,2]
[404984335,1770732033591,1000.0,0.00014247,2]
[404984336,1770732033635,500.80331725,0.00014795,2]
[404984337,1770732076664,500.0,0.00013273,2]
[404984338,1770732076701,500.0,0.00013821,2]
[404984341,1770732132177,502.24877944,0.00013699,2]
[404984344,1770732310674,500.0,0.00013699,2]
[404984345,1770732312985,500.0,0.00013699,2]
[404984346,1770732313732,500.0,0.00013273,2]
[404984347,1770732318814,500.75494106,0.00013699,2]
[404984348,1770732320224,500.0,0.00013699,2]
[404984349,1770732320784,520.49455266,0.00013699,2]
[404984350,1770732323005,500.0,0.00013699,2]
[404984351,1770732326769,500.0,0.00013699,2]
[404984352,1770732328397,500.0,0.00013273,2]
[404984353,1770732328451,280.2323295,0.00013821,2]
[404984355,1770732380781,405.30562702,0.00013273,2]
[404984356,1770732382718,500.0,0.00013699,2]
[404984357,1770732385518,487.34649707,0.00013699,2]
[404984358,1770732389271,500.0,0.00013699,2]
[404984359,1770732389817,159.17917928,0.00013699,2]
[404984360,1770732394677,500.0,0.00013273,2]
[404984361,1770732394704,587.57777081,0.00013821,2]
[404984362,1770732403925,500.35534999,0.00013699,2]
[404984363,1770732407693,309.13805658,0.00013699,2]
[404984364,1770732409111,500.0,0.00013699,2]
[404984365,1770732425214,500.0,0.00013699,2]
[404984366,1770732430875,500.0,0.00013699,2]
[404984367,1770732430928,500.0,0.00014247,2]
[404984368,1770732433308,500.01422864,0.00013699,2]
[404984400,1770732631955,-243.56632035,0.00025291,2]
[404984403,1770732631965,-500.0,0.00033263,7]
[404984405,1770732631975,-500.0,0.00033414,7]
[404984406,1770732631985,-721.0,0.00033438,2]
[404984409,1770732631995,-422.0,0.00033438,2]
[404984411,1770732632004,-262.345,0.00034982,2]
[404984413,1770732632014,-359.39013467,0.00035098,2]
[404984415,1770732632025,-1200.0,0.00035259,3]
[404984417,1770732632035,-500.0,0.00035945,30]
[404984419,1770732632044,-169.06785003,0.00036,120]
[404984420,1770732632054,-300.0,0.00036436,2]
[404984422,1770732632064,-721.0,0.00036438,2]
[404984424,1770732632073,-422.0,0.00036438,2]
[404984426,1770732632083,-168.0,0.00037536,2]
[404984428,1770732632092,-500.0,0.00037725,15]
[404984429,1770732632102,-425.25,0.00037777,2]
[404984431,1770732632111,-168.0,0.00037777,2]
[404984432,1770732632120,-500.0,0.0003778,15]
[404984434,1770732632130,-500.0,0.00037835,15]
[404984436,1770732632139,-500.0,0.00037889,15]
[404984438,1770732632148,-2500.0,0.000379,7]
[404984439,1770732632159,-500.0,0.00037938,30]
[404984441,1770732632169,-500.0,0.00037944,15]
[404984443,1770732632179,-265.14099548,0.00037967,3]
[404984444,1770732632189,-1022.11642238,0.00037977,2]
[404985155,1770732724753,500.0,0.00013273,2]
[404985156,1770732724785,1000.0,0.00013821,2]
[404985157,1770732724883,340.67069541,0.00014368,2]
[404985158,1770732730513,500.0,0.00013273,2]
[404985159,1770732730575,500.0,0.00013821,2]
[404985160,1770732732044,500.0,0.00013273,2]
[404985161,1770732732075,1000.0,0.00013821,2]
[404985162,1770732732106,253.03894278,0.00014368,2]
[404985163,1770732734232,500.0,0.00013699,2]
[404985164,1770732904689,160.47692134,0.00013699,2]
[404985165,1770732907472,500.0,0.00013699,2]
[404985166,1770732908334,404.86368601,0.00013273,2]
[404985167,1770732910339,150.0,0.00017808,2]
[404985168,1770732910390,150.09431238,0.00018356,2]
[404985169,1770732911592,500.0,0.00013699,2]
[404985170,1770732913377,500.0,0.00013699,2]
[404985171,1770732913835,500.0,0.00013699,2]
[404985172,1770732916647,500.0,0.00013273,2]
[404985173,1770732917677,641.02120773,0.00013699,2]
[404985174,1770732918333,500.0,0.00013699,2]
[404985176,1770732924441,500.61278183,0.00013699,2]
[404985177,1770732930679,500.0,0.00013699,2]
[404985179,1770732983122,450.3420333,0.00013699,2]
[404985180,1770732984407,500.0,0.00013273,2]
[404985181,1770732984464,1000.0,0.00013821,2]
[404985182,1770732984516,534.90536496,0.00014368,2]
[404985183,1770732985879,500.0,0.00013273,2]
[404985184,1770732985928,1099.85534598,0.00013821,2]
[404985185,1770732990035,500.0,0.00013273,2]
[404985186,1770732990097,1001.32742357,0.00013821,2]
[404985187,1770732990874,500.0,0.00013699,2]
[404985188,1770732990923,500.0,0.00014247,2]
[404985189,1770732997615,590.31142075,0.00013699,2]
[404985192,1770733024471,484.93167027,0.00013273,2]
[404985193,1770733086602,365.79347951,0.00013273,2]
[404985194,1770733135671,200.716501,0.00017352,2]
[404985215,1770733278371,549.9770296,0.00013273,2]
[404985216,1770733323904,491.63744615,0.00021918,2]
[404985236,1770733569731,500.22310915,0.00013699,2]
[404985237,1770733581069,501.16873503,0.00013699,2]
[404985257,1770733595336,500.0,0.00013699,2]
[404985282,1770733687894,-265.12851617,0.00023999,2]
[404985283,1770733717717,-164.99999997,0.00023759,2]
[404985284,1770733808536,-100.1285162,0.00023759,2]
[404985285,1770733808558,-300.0,0.00023999,2]
[404985286,1770733808579,-4599.8714838,0.00024,2]
[404985287,1770733811374,-5000.0,0.00024,2]
[404985288,1770733812706,-4088.79047401,0.00024,2]
[404985314,1770733832321,-164.99999997,0.00024953,2]
[404985315,1770733832331,-395.0,0.00026026,2]
[404985316,1770733832341,-742.18218896,0.00029,10]
[404985317,1770733832354,-499.89155204,0.00034,2]
[404985318,1770733832364,-200.716501,0.00034704,2]
[404985319,1770733832373,-248.158096,0.00035128,2]
[404985320,1770733832383,-177.00038499,0.00035656,120]
[404985321,1770733832393,-345.212,0.00035756,2]
[404985322,1770733832403,-507.143,0.00035756,2]
[404985323,1770733832413,-721.0,0.00035756,2]
[404985324,1770733832423,-500.0,0.00037195,30]
[404985325,1770733832432,-345.0,0.00037388,2]
[404985326,1770733832442,-403.04807865,0.00037479,2]
[404985327,1770733832451,-3881.72171291,0.000375,2]
[404985520,1770733840518,-3e-08,0.00037499,15]
[404985526,1770733840559,-499.99999997,0.00037499,15]
[404985528,1770733840569,-500.0,0.00037499,7]
[404985529,1770733840578,-500.0,0.00037499,7]
[404985532,1770733840587,-249.16238381,0.00037499,7]
[404985744,1770733845297,-186.35102858,0.00024953,2]
[404985745,1770733845430,-250.83761619,0.00037499,7]
[404985746,1770733845440,-500.0,0.00037499,7]
[404985747,1770733845450,-500.0,0.00037499,15]
[404985748,1770733845460,-500.0,0.00037499,7]
[404985749,1770733845469,-500.0,0.00037499,7]
[404985750,1770733845479,-500.0,0.00037499,7]
[404985751,1770733845488,-500.0,0.00037499,15]
[404985752,1770733845497,-409.42475986,0.00037499,7]
[404985753,1770733845508,-90.57524014,0.00037499,7]
[404985754,1770733845517,-310.51135523,0.00037499,7]
[404985767,1770733846430,-189.48864477,0.00037499,7]
[404985768,1770733846441,-500.0,0.00037499,15]
[404985769,1770733846452,-500.0,0.00037499,7]
[404985770,1770733846463,-500.0,0.00037499,7]
[404985771,1770733846473,-500.0,0.00037499,7]
[404985772,1770733846482,-500.0,0.00037499,15]
[404985773,1770733846491,-500.0,0.00037499,7]
[404985774,1770733846500,-500.0,0.00037499,7]
[404985775,1770733846509,-500.0,0.00037499,7]
[404985776,1770733846519,-358.95236833,0.00037499,15]
[404985777,1770733846529,-500.0,0.00037499,7]
[404985778,1770733846539,-500.0,0.00037499,7]
[404985779,1770733846549,-500.0,0.00037499,7]
[404985780,1770733846560,-500.0,0.00037499,7]
[404985781,1770733846569,-500.0,0.00037499,7]
[404985782,1770733846579,-311.72988774,0.00037499,7]
[404985783,1770733846589,-500.0,0.00037499,7]
[404985784,1770733846598,-500.0,0.00037499,7]
[404985785,1770733846608,-500.0,0.00037499,7]
[404985786,1770733846623,-500.0,0.00037499,7]
[404985787,1770733846633,-500.0,0.00037499,7]
[404985788,1770733846643,-500.0,0.00037499,7]
[404985789,1770733846653,-500.0,0.00037499,7]
[404985790,1770733846663,-500.0,0.00037499,7]
[404985791,1770733846672,-500.0,0.00037499,7]
[404985792,1770733846682,-500.0,0.00037499,7]
[404985793,1770733846691,-500.0,0.00037499,7]
[404985794,1770733846701,-500.0,0.00037499,7]
[404985795,1770733846711,-500.0,0.00037499,7]
[404985796,1770733846720,-323.10999916,0.00037499,7]
[404985808,1770733892851,500.40139219,0.00013699,2]
[404985810,1770733903749,500.0,0.00013699,2]
[404985814,1770733939198,-1000.0,0.00024953,2]
[404985819,1770734079215,-228.73353485,0.00024703,2]
[404985820,1770734110274,3379.37,0.00030137,120]
[404985822,1770734133840,303.10001603,0.000189,2]
[404985872,1770734306657,-1599.74430103,0.00023945,2]
[404985975,1770734799476,500.0,0.00013273,2]
[404986006,1770735032349,-170.30848422,0.00024187,2]
[404986007,1770735032361,-200.16749579,0.00024441,2]
[404986008,1770735032378,-500.0,0.00034399,7]
[404986009,1770735032397,-669.1361085,0.0003603,2]
[404986010,1770735032412,-1051.213,0.00036384,2]
[404986011,1770735032422,-761.13635763,0.00036806,2]
[404986013,1770735032433,-684.855,0.00036806,2]
[404986158,1770735038435,-4283.17553647,0.00036806,2]
[404986161,1770735038445,-168.0,0.00037459,2]
[404986163,1770735038455,-352.66706881,0.00037486,2]
[404986166,1770735038465,-202.58,0.0003749,10]
[404986168,1770735038474,-224.06,0.000375,2]
[404986171,1770735038484,-7364.36499625,0.000375,2]
[404986383,1770735040538,-65685.05375561,0.000375,2]
[404986391,1770735040612,-771.32932613,0.000375,2]
[404986403,1770735040716,-6820.0,0.000375,2]
[404986405,1770735040730,-265.99305768,0.000375,2]
[404986816,1770735046554,-317.50951382,0.000375,2]
[404986817,1770735046567,-7576.89708037,0.000375,2]
[404986875,1770735627691,500.0,0.00013699,2]
[404986876,1770735627725,1000.0,0.00014247,2]
[404986877,1770735627786,1500.0,0.00014795,2]
[404986878,1770735630592,500.0,0.00013699,2]
[404986879,1770735630652,534.40798224,0.00014247,2]
[404986880,1770735633661,155.38166569,0.00013699,2]